fUST/lending_fUST_20251107
["ID","MTS","AMOUNT","RATE_DAILY","PERIOD"]
[393352149,1762507246955,175.38,0.00015777,3]
[393352150,1762507257696,526.18,0.00015777,3]
[393352152,1762507457159,1764.18891383,0.00037132,20]
[393352153,1762507470535,48793.610869,0.00017,4]
[393352178,1762507501221,50000.0,0.000165,4]
[393352180,1762507519755,50551.389131,0.0001625,3]
[393352183,1762507554063,103607.50977309,0.00037132,120]
[393352194,1762507727782,5400.45,0.00015677,3]
[393352195,1762507738425,2700.22,0.00015677,3]
[393352196,1762507749447,1350.11,0.00015677,3]
[393352200,1762507760030,675.06,0.00015677,3]
[393352201,1762507765395,450.776573,0.00013699,2]
[393352202,1762507771128,337.53,0.00015677,3]
[393352203,1762507781731,168.76,0.00015677,3]
[393352204,1762507792369,506.33,0.00015677,3]
[393352251,1762507831879,-150.22860417,0.00015295,2]
[393352253,1762507831889,-150.22860417,0.00015449,2]
[393352255,1762507831899,-150.22860417,0.00015605,2]
[393352258,1762507831910,-300.0,0.00015685,2]
[393352259,1762507831919,-1136.0,0.00015685,2]
[393352262,1762507831929,-248.79628668,0.00015685,2]
[393352264,1762507831939,-333.87156747,0.00015686,2]
[393352265,1762507831948,-201.01910793,0.00015686,2]
[393352267,1762507831959,-500.0,0.00015686,2]
[393352269,1762507831969,-500.0,0.00015686,2]
[393352271,1762507831978,-530.96573878,0.00015686,2]
[393352273,1762507831989,-147271.20255287,0.00015687,2]
[393352306,1762507837796,-374.98291664,0.00015687,2]
[393352307,1762507837853,-29406.03599251,0.00015687,2]
[393352308,1762507837867,-42215.13814363,0.00015687,2]
[393352309,1762507837878,-506.0,0.00015687,2]
[393352329,1762507839983,-1642.73271254,0.00015687,2]
[393352456,1762507843730,-2104.955261,0.00015531,2]
[393352481,1762508323626,2700.22,0.00015677,3]
[393352482,1762508334246,2193.93,0.00015677,3]
[393352483,1762508344866,1096.96,0.00015677,3]
[393352484,1762508355493,548.48,0.00015677,3]
[393352485,1762508366204,274.24,0.00015677,3]
[393352486,1762508376824,822.77,0.00015677,3]
[393352487,1762508432012,5801.51670359,0.00014476,2]
[393352489,1762508513408,500.0,0.00037111,60]
[393352490,1762508513596,559.26166896,0.00037111,60]
[393352491,1762508597124,652.8654311,0.0003711,30]
[393352493,1762508907964,2271.27,0.00015577,3]
[393352494,1762508918605,1135.64,0.00015577,3]
[393352495,1762508929217,1703.45,0.00015577,3]
[393352496,1762508939829,851.73,0.00015577,3]
[393352497,1762508950703,425.86,0.00015577,3]
[393352498,1762508961338,212.93,0.00015577,3]
[393352499,1762508971970,638.84,0.00015577,3]
[393352588,1762509032146,-150.0,0.00014752,2]
[393352590,1762509032155,-150.0,0.00014901,2]
[393352592,1762509032165,-500.01748358,0.00015068,2]
[393352594,1762509032174,-162.99,0.00015135,2]
[393352596,1762509032185,-162.99,0.00015135,2]
[393352598,1762509032194,-163.01,0.00015135,2]
[393352600,1762509032204,-150.0,0.000155,2]
[393352602,1762509032214,-150.0,0.000155,2]
[393352604,1762509032223,-500.0,0.00015573,2]
[393352606,1762509032238,-411.00832176,0.00015573,2]
[393352608,1762509032248,-1862.61357289,0.00015573,2]
[393352610,1762509032257,-300.0,0.00015586,2]
[393352612,1762509032267,-233.71009723,0.00015586,2]
[393352614,1762509032276,-170.10730431,0.00015586,2]
[393352615,1762509032286,-499833.55322023,0.00015587,2]
[393352713,1762509037927,-1741.29941832,0.00015587,2]
[393352714,1762509037938,-2170.27187081,0.00015587,2]
[393352716,1762509037950,-36609.31832353,0.00015587,2]
[393352727,1762509040079,-258.22,0.00015587,2]
[393352728,1762509040090,-302.38100002,0.00015587,2]
[393352729,1762509040133,-2215.58800623,0.00015587,2]
[393352730,1762509040188,-2032.49000497,0.00015587,2]
[393352739,1762509043079,-808.0,0.00015432,2]
[393352756,1762509046653,-5230.38538854,0.00015432,2]
[393352758,1762509046663,-139836.87815589,0.00015587,2]
[393352760,1762509046672,-417.99981792,0.00015673,2]
[393352762,1762509046681,-347.76002275,0.00015785,2]
[393352764,1762509046690,-1932.0,0.00015785,2]
[393352765,1762509046699,-3929.83816784,0.00016,2]
[393352766,1762509046708,-419.09493944,0.00016322,2]
[393352767,1762509046717,-500.0,0.00016438,2]
[393352768,1762509046726,-500.0,0.00016438,2]
[393352769,1762509046735,-272.54615147,0.00016438,2]
[393352770,1762509046744,-314.54789309,0.00016545,2]
[393352771,1762509046753,-754.370891,0.00016547,2]
[393352772,1762509046762,-150.0,0.00016807,3]
[393352773,1762509046771,-177.0,0.00016901,2]
[393352774,1762509046780,-3406.9,0.00016947,3]
[393352775,1762509046789,-1703.46,0.00016947,3]
[393352776,1762509046798,-851.72,0.00016947,3]
[393352777,1762509046807,-425.86,0.00016947,3]
[393352778,1762509046816,-501.92045593,0.00017,3]
[393352779,1762509046825,-420.0,0.00017048,2]
[393352780,1762509046834,-1178.77405572,0.00017748,2]
[393352781,1762509046843,-435.21186361,0.00017791,2]
[393352782,1762509046853,-411.00832174,0.0001788,2]
[393352783,1762509046862,-160.0,0.000179,2]
[393352784,1762509046871,-562.4111145,0.00018,5]
[393352785,1762509046880,-527.32707714,0.00018,5]
[393352786,1762509046889,-783.3813545,0.00018005,2]
[393352787,1762509046907,-260.0,0.00018448,2]
[393352788,1762509046919,-587.0,0.00018647,2]
[393352789,1762509046928,-628.0,0.00018648,2]
[393352790,1762509046938,-986.0,0.00018648,2]
[393352791,1762509046947,-2166.0,0.00018648,2]
[393352792,1762509046957,-587.0,0.0001866,2]
[393352793,1762509046966,-184.65,0.0001866,2]
[393352794,1762509046977,-184.65,0.0001866,2]
[393352795,1762509046987,-184.65,0.0001866,2]
[393352796,1762509046996,-204.0,0.00018901,2]
[393352797,1762509047005,-153.35505434,0.00018928,2]
[393352798,1762509047015,-158.56288235,0.00018928,2]
[393352799,1762509047024,-150.198,0.00018928,2]
[393352800,1762509047033,-150.191,0.00018928,2]
[393352801,1762509047042,-150.0,0.00018928,2]
[393352802,1762509047051,-225.113,0.00018928,2]
[393352803,1762509047061,-500.0,0.00018928,2]
[393352804,1762509047071,-551.66699511,0.00018935,7]
[393352806,1762509047080,-360.0,0.00018996,2]
[393352808,1762509047089,-1000.0,0.00019,5]
[393352809,1762509047098,-3095.28736511,0.00019205,5]
[393352810,1762509047107,-1178.77405572,0.00019497,2]
[393352811,1762509047117,-460.0,0.00019544,2]
[393352812,1762509047126,-2000.0,0.0002,7]
[393352813,1762509047136,-560.0,0.00020092,2]
[393352814,1762509047149,-411.00832174,0.00020187,2]
[393352815,1762509047158,-450.776573,0.00020187,2]
[393352816,1762509047168,-823.0,0.00020396,2]
[393352817,1762509047177,-660.0,0.0002064,2]
[393352818,1762509047187,-231.0,0.00020901,2]
[393352819,1762509047197,-1000.0,0.00021,7]
[393352820,1762509047206,-399.72441935,0.00021144,2]
[393352821,1762509047215,-160.0,0.00021144,2]
[393352822,1762509047227,-760.0,0.00021188,2]
[393352823,1762509047236,-1178.77405572,0.00021246,3]
[393352824,1762509047245,-628.0,0.00021648,2]
[393352825,1762509047254,-986.0,0.00021648,2]
[393352826,1762509047263,-2159.0,0.00021648,2]
[393352827,1762509047272,-860.0,0.00021736,2]
[393352828,1762509047282,-150.0,0.00021928,2]
[393352829,1762509047291,-150.0,0.00021928,2]
[393352830,1762509047300,-150.0,0.00021928,2]
[393352831,1762509047309,-267.534705,0.00021991,2]
[393352832,1762509047318,-150.0,0.00022135,15]
[393352833,1762509047328,-196.71,0.000222,7]
[393352834,1762509047476,-2000.0,0.00022222,7]
[393352835,1762509047488,-886.60662878,0.00022284,2]
[393352836,1762509047498,-1114.0,0.00022309,2]
[393352837,1762509047507,-411.00832174,0.00022493,2]
[393352838,1762509047516,-1862.61357285,0.00022552,2]
[393352839,1762509047525,-572.88217642,0.00022765,7]
[393352840,1762509047534,-153.98796,0.00022893,2]
[393352841,1762509047543,-258.0,0.00022901,2]
[393352842,1762509047552,-153.98796,0.00022928,3]
[393352843,1762509047561,-1178.77405572,0.00022995,3]
[393352844,1762509047571,-1000.0,0.00023,9]
[393352845,1762509047580,-5000.0,0.00024188,2]
[393352846,1762509047589,-2000.0,0.00024444,7]
[393352847,1762509047598,-501.5332089,0.00024521,2]
[393352848,1762509047607,-500.0,0.00024658,2]
[393352849,1762509047616,-500.0,0.00024713,2]
[393352850,1762509047625,-1178.77405572,0.00024744,4]
[393352851,1762509047634,-500.0,0.00024768,2]
[393352852,1762509047643,-500.0,0.000248,7]
[393352853,1762509047652,-152.884092,0.000248,7]
[393352854,1762509047661,-151.0,0.000248,7]
[393352855,1762509047670,-151.0,0.000248,7]
[393352856,1762509047679,-156.782476,0.000248,7]
[393352857,1762509047688,-411.00832174,0.000248,2]
[393352858,1762509047697,-181.49512292,0.00024801,2]
[393352859,1762509047706,-500.0,0.00024822,2]
[393352860,1762509047715,-500.0,0.00024873,2]
[393352861,1762509047725,-500.0,0.00024877,2]
[393352862,1762509047734,-500.0,0.000249,7]
[393352863,1762509047744,-604.158413,0.000249,7]
[393352864,1762509047752,-604.158413,0.000249,7]
[393352865,1762509047762,-604.158413,0.000249,7]
[393352866,1762509047774,-604.158413,0.000249,7]
[393352867,1762509047783,-169.779585,0.000249,7]
[393352868,1762509047792,-151.0,0.000249,7]
[393352869,1762509047801,-151.0,0.000249,7]
[393352870,1762509047810,-345544.574713,0.000249,2]
[393352871,1762509047820,-151.0,0.000249,7]
[393352872,1762509047829,-152.839059,0.000249,7]
[393352873,1762509047838,-151.0,0.000249,7]
[393352874,1762509047847,-151.0,0.000249,7]
[393352875,1762509047856,-294.853713,0.000249,7]
[393352876,1762509047866,-151.0,0.000249,7]
[393352877,1762509047875,-151.0,0.000249,2]
[393352878,1762509047884,-151.0,0.000249,7]
[393352879,1762509047893,-151.0,0.000249,2]
[393352880,1762509047902,-285.0,0.00024901,2]
[393352881,1762509047911,-150.0,0.00024928,2]
[393352882,1762509047921,-150.0,0.00024928,2]
[393352883,1762509047930,-500.0,0.00024932,2]
[393352884,1762509047939,-205.16634734,0.00024987,2]
[393352885,1762509047949,-1000.0,0.00025,11]
[393352886,1762509047958,-153.98796,0.00025083,3]
[393352887,1762509047968,-153.98796,0.00025088,2]
[393352888,1762509047977,-167.902,0.00025151,9]
[393352889,1762509047987,-458.89494556,0.00025739,2]
[393352890,1762509047996,-5000.0,0.00026045,2]
[393352891,1762509048005,-153.98796,0.00026374,5]
[393352892,1762509048015,-1178.77405572,0.00026493,4]
[393352893,1762509048024,-2000.0,0.00026667,7]
[393352894,1762509048034,-450.776573,0.00026676,2]
[393352895,1762509048043,-153.98796,0.00026888,5]
[393352896,1762509048053,-312.0,0.00026901,2]
[393352897,1762509048063,-1000.0,0.00027,12]
[393352898,1762509048072,-426.616849,0.00027397,31]
[393352899,1762509048082,-426.616849,0.00027397,31]
[393352900,1762509048091,-426.616849,0.00027397,31]
[393352901,1762509048101,-426.616849,0.00027397,31]
[393352902,1762509048111,-426.616849,0.00027397,31]
[393352903,1762509048121,-426.616849,0.00027397,31]
[393352904,1762509048131,-426.616849,0.00027397,31]
[393352905,1762509048142,-426.616849,0.00027397,31]
[393352906,1762509048154,-1693.96,0.000275,2]
[393352907,1762509048163,-151.0,0.000278,16]
[393352908,1762509048173,-5000.0,0.00027902,2]
[393352909,1762509048184,-150.0,0.00027928,2]
[393352910,1762509048193,-1178.77405572,0.00028242,5]
[393352911,1762509048203,-196.71,0.000283,7]
[393352912,1762509048212,-162.0,0.0002863,14]
[393352913,1762509048226,-2000.0,0.00028889,7]
[393352914,1762509048238,-339.0,0.00028901,2]
[393352915,1762509048248,-1000.0,0.00029,13]
[393352916,1762509048258,-201.17,0.00029077,2]
[393352917,1762509048268,-1862.61357285,0.00029531,2]
[393352918,1762509048278,-5000.0,0.0002976,2]
[393352919,1762509048287,-500.0,0.0002976,31]
[393352920,1762509048297,-151.0,0.000299,17]
[393352921,1762509048306,-604.158413,0.00029931,31]
[393352922,1762509048316,-604.158413,0.00029931,31]
[393352923,1762509048325,-604.158413,0.00029931,31]
[393352924,1762509048335,-604.158413,0.00029931,31]
[393352925,1762509048344,-151.0,0.00029931,31]
[393352926,1762509048355,-426.616849,0.00029931,31]
[393352927,1762509048364,-426.616849,0.00029931,31]
[393352928,1762509048373,-426.616849,0.00029931,31]
[393352929,1762509048383,-426.616849,0.00029931,31]
[393352930,1762509048392,-150.0,0.00029972,30]
[393352931,1762509048402,-1178.77405572,0.00029991,5]
[393352932,1762509048411,-3504.42780932,0.0003,2]
[393352933,1762509048420,-261.75454997,0.0003,2]
[393352934,1762509048430,-268.3719938,0.0003,2]
[393352935,1762509048439,-900.0,0.0003,2]
[393352936,1762509048448,-151.0,0.0003,31]
[393352937,1762509048458,-151.0,0.0003,31]
[393352938,1762509048467,-2180.92159377,0.0003013,5]
[393352939,1762509048477,-286.44422525,0.0003013,2]
[393352940,1762509048486,-151.0,0.0003013,31]
[393352941,1762509048496,-151.0,0.0003013,31]
[393352942,1762509048505,-151.0,0.0003013,2]
[393352943,1762509048515,-151.0,0.0003013,2]
[393352944,1762509048524,-672.81491013,0.0003022,2]
[393352945,1762509048534,-7525.29,0.00030301,2]
[393352946,1762509048543,-500.0,0.00030337,7]
[393352947,1762509048553,-500.0,0.00030645,7]
[393352948,1762509048562,-1693.96,0.000307,2]
[393352949,1762509048572,-500.0,0.00030771,7]
[393352950,1762509048581,-153.98796,0.00030779,20]
[393352951,1762509048590,-196.71,0.000309,7]
[393352952,1762509048599,-366.0,0.00030901,2]
[393352953,1762509048608,-304.54098364,0.0003099,2]
[393352954,1762509048617,-1000.0,0.00031,31]
[393352955,1762509048627,-208.86199334,0.0003102,3]
[393352956,1762509048636,-2000.0,0.00031111,7]
[393352957,1762509048645,-30000.0,0.0003112,2]
[393352958,1762509048654,-500.0,0.0003112,31]
[393352959,1762509048669,-604.158413,0.0003112,31]
[393352960,1762509048682,-604.158413,0.0003112,31]
[393352961,1762509048692,-604.158413,0.0003112,31]
[393352962,1762509048701,-604.158413,0.0003112,31]
[393352963,1762509048711,-426.616849,0.0003112,31]
[393352964,1762509048720,-426.616849,0.0003112,31]
[393352965,1762509048730,-426.616849,0.0003112,31]
[393352966,1762509048740,-426.616849,0.0003112,31]
[393352967,1762509048749,-174.699677,0.0003112,31]
[393352968,1762509048759,-298.695619,0.0003112,31]
[393352969,1762509048768,-155.578702,0.0003112,31]
[393352970,1762509048778,-151.0,0.0003112,31]
[393352971,1762509048788,-151.0,0.0003112,2]
[393352972,1762509048798,-151.0,0.0003112,2]
[393352973,1762509048807,-500.0,0.00031221,7]
[393352974,1762509048817,-12500.0,0.0003123,10]
[393352975,1762509048827,-12500.0,0.00031231,10]
[393352976,1762509048836,-426.616849,0.00031238,31]
[393352977,1762509048845,-426.616849,0.00031238,31]
[393352978,1762509048855,-426.616849,0.00031238,31]
[393352979,1762509048864,-426.61684,0.00031238,31]
[393352980,1762509048873,-151.0,0.00031238,31]
[393352981,1762509048883,-151.0,0.00031238,2]
[393352982,1762509048893,-151.0,0.00031238,2]
[393352983,1762509048902,-12500.0,0.00031238,10]
[393352984,1762509048912,-12500.0,0.0003124,10]
[393352985,1762509048921,-12500.0,0.00031247,10]
[393352986,1762509048931,-500.0,0.00031248,31]
[393352987,1762509048940,-500.0,0.00031248,31]
[393352988,1762509048949,-604.158413,0.00031248,31]
[393352989,1762509048959,-604.158413,0.00031248,31]
[393352990,1762509048968,-604.158413,0.00031248,31]
[393352991,1762509048979,-604.158413,0.00031248,31]
[393352992,1762509048989,-12500.0,0.00031249,10]
[393352993,1762509048999,-12500.0,0.00031256,10]
[393352994,1762509049008,-151.0,0.00031256,31]
[393352995,1762509049018,-151.0,0.00031256,2]
[393352996,1762509049029,-236.263936,0.00031256,2]
[393352997,1762509049039,-12500.0,0.00031257,10]
[393352998,1762509049048,-12500.0,0.00031265,10]
[393352999,1762509049058,-12500.0,0.00031266,10]
[393353000,1762509049068,-180.28281362,0.00031268,7]
[393353001,1762509049078,-12500.0,0.00031274,10]
[393353002,1762509049089,-12500.0,0.00031275,10]
[393353003,1762509049098,-12500.0,0.00031282,10]
[393353004,1762509049108,-12500.0,0.00031284,10]
[393353005,1762509049118,-604.158413,0.00031284,31]
[393353006,1762509049128,-604.158413,0.00031284,31]
[393353007,1762509049138,-604.158413,0.00031284,31]
[393353008,1762509049148,-604.158412,0.00031284,31]
[393353009,1762509049159,-12500.0,0.00031291,10]
[393353010,1762509049169,-12500.0,0.00031293,10]
[393353011,1762509049178,-12500.0,0.000313,10]
[393353012,1762509049189,-12500.0,0.00031301,10]
[393353013,1762509049198,-12500.0,0.00031352,10]
[393353014,1762509049207,-12500.0,0.00031361,10]
[393353015,1762509049217,-12500.0,0.0003137,10]
[393353016,1762509049229,-300.0,0.00031373,5]
[393353017,1762509049239,-12500.0,0.00031378,10]
[393353018,1762509049248,-12500.0,0.00031381,10]
[393353019,1762509049257,-12500.0,0.00031387,10]
[393353020,1762509049267,-12500.0,0.00031389,10]
[393353021,1762509049276,-12500.0,0.00031396,10]
[393353022,1762509049286,-12500.0,0.00031397,10]
[393353023,1762509049295,-12500.0,0.00031398,10]
[393353024,1762509049304,-500.0,0.00031543,7]
[393353025,1762509049314,-503.97656295,0.00031582,7]
[393353026,1762509049323,-5000.0,0.00031617,2]
[393353027,1762509049332,-153.98796,0.0003168,20]
[393353028,1762509049341,-402.34,0.0003172,2]
[393353029,1762509049351,-1178.77405572,0.00031739,6]
[393353030,1762509049360,-36778.3699727,0.000319,2]
[393353031,1762509049370,-600.0,0.00031921,5]
[393353032,1762509049379,-728.1699792,0.00031936,7]
[393353033,1762509049389,-13858.17538962,0.00031947,2]
[393353034,1762509049398,-1883.39431391,0.00031999,2]
[393353035,1762509049408,-302.69853,0.00032,30]
[393353036,1762509049418,-3430.30685575,0.00032,5]
[393353037,1762509049427,-1006.78,0.00032,2]
[393353038,1762509049437,-54792.64085674,0.0003201,3]
[393353039,1762509049447,-500.0,0.00032047,7]
[393353040,1762509049457,-506.39274918,0.00032198,7]
[393353041,1762509049466,-190.9641021,0.000323,30]
[393353042,1762509049476,-156.7792557,0.000323,30]
[393353043,1762509049485,-163.960249,0.000323,30]
[393353044,1762509049495,-435.5905227,0.000323,30]
[393353045,1762509049504,-163.960249,0.000323,30]
[393353046,1762509049514,-190.9641021,0.000323,30]
[393353047,1762509049524,-163.960249,0.000323,30]
[393353048,1762509049533,-592.3400505,0.000323,30]
[393353049,1762509049543,-190.9641021,0.000323,30]
[393353050,1762509049552,-299.8681509,0.000323,30]
[393353051,1762509049561,-163.960249,0.000323,30]
[393353052,1762509049574,-190.9641021,0.000323,30]
[393353053,1762509049584,-299.8681509,0.000323,30]
[393353054,1762509049593,-592.3400505,0.000323,30]
[393353055,1762509049603,-163.960249,0.000323,30]
[393353056,1762509049612,-190.9641021,0.000323,30]
[393353057,1762509049621,-299.8681509,0.000323,30]
[393353058,1762509049630,-592.3400505,0.000323,30]
[393353059,1762509049640,-299.8681509,0.000323,30]
[393353060,1762509049649,-392.3335808,0.000323,30]
[393353061,1762509049658,-323.0671708,0.000323,30]
[393353062,1762509049667,-592.3400505,0.000323,30]
[393353063,1762509049676,-1693.96,0.000323,2]
[393353064,1762509049685,-153.98796,0.0003242,60]
[393353065,1762509049695,-301.13612469,0.00032468,5]
[393353066,1762509049704,-172.43,0.00032697,30]
[393353067,1762509049713,-153.98796,0.00032858,30]
[393353068,1762509049723,-1000.0,0.00032876,2]
[393353069,1762509049733,-1000.0,0.00032876,2]
[393353070,1762509049742,-500.0,0.00032876,2]
[393353071,1762509049751,-1000.0,0.00032876,2]
[393353072,1762509049760,-6119.75,0.00032877,10]
[393353073,1762509049770,-6748.11,0.00032877,10]
[393353074,1762509049779,-5623.43,0.00032877,10]
[393353075,1762509049789,-500.0,0.00032877,15]
[393353076,1762509049798,-500.0,0.00032877,7]
[393353077,1762509049807,-250.2,0.00032877,15]
[393353078,1762509049816,-500.0,0.00032877,2]
[393353079,1762509049825,-172.60505932,0.00032883,120]
[393353080,1762509049834,-196.71,0.000329,14]
[393353081,1762509049843,-393.0,0.00032901,120]
[393353082,1762509049853,-500.0,0.00032932,2]
[393353083,1762509049862,-500.0,0.00032987,2]
[393353084,1762509049871,-52000.0,0.00033,20]
[393353085,1762509049991,-653.83945049,0.00033,2]
[393353086,1762509050001,-82203.17867062,0.00033,2]
[393353087,1762509050011,-1000.0,0.00033,120]
[393353088,1762509050021,-500.0,0.00033041,2]
[393353089,1762509050030,-500.0,0.00033096,2]
[393353090,1762509050039,-561.51,0.0003315,14]
[393353091,1762509050048,-500.0,0.00033151,2]
[393353092,1762509050057,-450.776573,0.00033165,2]
[393353093,1762509050067,-163.41167549,0.000332,117]
[393353094,1762509050076,-163.41167549,0.000332,117]
[393353095,1762509050085,-500.0,0.00033206,2]
[393353096,1762509050094,-500.0,0.00033261,2]
[393353097,1762509050103,-292.45382789,0.00033315,2]
[393353098,1762509050112,-2000.0,0.00033333,7]
[393353099,1762509050122,-153.98796,0.00033408,30]
[393353100,1762509050132,-1000.0,0.00033424,2]
[393353101,1762509050142,-1000.0,0.00033424,2]
[393353102,1762509050156,-500.0,0.00033424,2]
[393353103,1762509050165,-567.53967786,0.00033424,2]
[393353104,1762509050174,-5000.0,0.00033474,3]
[393353105,1762509050183,-1179.95282977,0.00033488,7]
[393353106,1762509050192,-150.0,0.000335,2]
[393353107,1762509050202,-215.0,0.00033534,120]
[393353108,1762509050211,-153.98796,0.000336,60]
[393353109,1762509050220,-160.0,0.00033603,3]
[393353110,1762509050230,-163.16764529,0.00033603,5]
[393353111,1762509050240,-561.51,0.00033698,16]
[393353112,1762509050250,-1000.0,0.00033972,2]
[393353113,1762509050259,-1000.0,0.00033972,2]
[393353114,1762509050269,-500.0,0.00033972,2]
[393353115,1762509050278,-5075.7057073,0.0003398,2]
[393353116,1762509050287,-200.0,0.00034,120]
[393353117,1762509050297,-1003.12069083,0.00034,2]
[393353118,1762509050306,-440.9887532,0.00034049,30]
[393353119,1762509050315,-561.51,0.00034246,18]
[393353120,1762509050324,-603.52,0.00034363,2]
[393353121,1762509050334,-150.74,0.00034417,60]
[393353122,1762509050343,-221.19,0.00034445,60]
[393353123,1762509050353,-150.74,0.00034517,60]
[393353124,1762509050362,-1000.0,0.0003452,2]
[393353125,1762509050372,-1000.0,0.0003452,2]
[393353126,1762509050381,-500.0,0.0003452,2]
[393353127,1762509050390,-221.19,0.00034545,60]
[393353128,1762509050398,-150.74,0.00034617,60]
[393353129,1762509050407,-221.19,0.00034645,60]
[393353130,1762509050416,-1693.96,0.000347,14]
[393353131,1762509050426,-150.74,0.00034717,60]
[393353132,1762509050435,-1365.48672878,0.00034728,12]
[393353133,1762509050444,-603.0119508,0.00034734,30]
[393353134,1762509050453,-221.19,0.00034745,60]
[393353135,1762509050462,-561.51,0.00034794,20]
[393353136,1762509050472,-150.74,0.00034817,60]
[393353137,1762509050482,-221.19,0.00034845,60]
[393353138,1762509050492,-420.0,0.00034901,120]
[393353139,1762509050501,-150.74,0.00034917,60]
[393353140,1762509050510,-221.19,0.00034945,60]
[393353141,1762509050520,-661250.50089025,0.00035,5]
[393353174,1762509650840,6000.0,0.00027397,120]
[393353175,1762509651092,2004.57620442,0.00027397,120]
[393353176,1762509802875,1161.99,0.00023288,30]
[393353179,1762510014130,-167.90249422,0.00015178,2]
[393353180,1762510014152,-150.0,0.00015325,2]
[393353181,1762510014174,-504.64489535,0.00015473,2]
[393353182,1762510014196,-599.05248367,0.00015473,2]
[393353183,1762510014218,-500.0,0.00015473,2]
[393353184,1762510014239,-300.0,0.00015485,2]
[393353185,1762510014262,-221.72550582,0.00015486,2]
[393353186,1762510014286,-500.0,0.00015486,2]
[393353187,1762510014306,-377.11983327,0.00015486,2]
[393353188,1762510014326,-500.0,0.00015486,2]
[393353189,1762510014346,-500.0,0.00015486,2]
[393353190,1762510014369,-500.0,0.00015486,2]
[393353191,1762510014391,-500.0,0.00015486,2]
[393353192,1762510014412,-500.0,0.00015486,2]
[393353193,1762510014434,-474.40799707,0.00015486,2]
[393353194,1762510014456,-8453.4393296,0.00015487,2]
[393353195,1762510102722,321.0,0.00037044,20]
[393353260,1762510232193,-502.2083303,0.00015473,2]
[393353261,1762510232202,-150.0,0.0001548,2]
[393353262,1762510232212,-463594.22237088,0.00015487,2]
[393353289,1762510238050,-90485.17691688,0.00015487,2]
[393353290,1762510238118,-8977.47049466,0.00015487,2]
[393353441,1762510243471,-1638.699171,0.00015487,2]
[393353453,1762510246469,-563.791214,0.00015487,2]
[393353557,1762510952290,168.0,0.00031667,120]
[393353561,1762511167521,360.621258,0.00013699,2]
[393353683,1762511432453,-150.0,0.00015373,2]
[393353684,1762511432463,-1200.0,0.00015385,2]
[393353685,1762511432472,-155.20785407,0.00015386,2]
[393353686,1762511432482,-500.0,0.00015386,2]
[393353687,1762511432491,-500.0,0.00015386,2]
[393353688,1762511432501,-616.8851196,0.00015386,2]
[393353689,1762511432510,-620.32243917,0.00015386,2]
[393353690,1762511432520,-500407.58458716,0.00015387,2]
[393353696,1762511438254,-2136.88125509,0.00015387,2]
[393353697,1762511438266,-40595.86589827,0.00015387,2]
[393353698,1762511438310,-10090.11310546,0.00015387,2]
[393353744,1762511440538,-50364.99999999,0.00015387,2]
[393353747,1762511440550,-40143.52073413,0.00015387,2]
[393354419,1762511724031,500.0,0.00036979,60]
[393354420,1762511724287,500.0,0.00036979,60]
[393354421,1762511724526,500.0,0.00036979,60]
[393354422,1762511724794,500.0,0.00036979,60]
[393354423,1762511725094,500.0,0.00036979,60]